fUSD/lending_fUSD_20240301
["ID","MTS","AMOUNT","RATE_DAILY","PERIOD"]
[316000567,1709320261180,-156.637293,0.00022684,7]
[316000568,1709320261190,-501.04,0.00022684,2]
[316000569,1709320261199,-151.0,0.00022684,7]
[316000570,1709320261209,-500.0,0.00022684,2]
[316000571,1709320261219,-500.0,0.00022684,2]
[316000572,1709320261229,-500.0,0.00022684,2]
[316000573,1709320261239,-500.0,0.00022684,2]
[316000574,1709320261249,-500.0,0.00022684,2]
[316000575,1709320261258,-1387.81,0.00022684,2]
[316000576,1709320261268,-500.0,0.00022684,2]
[316000577,1709320261277,-1558.13,0.00022684,2]
[316000578,1709320261287,-500.0,0.00022684,2]
[316000579,1709320261297,-500.0,0.00022684,2]
[316000580,1709320261307,-1310.38,0.00022684,2]
[316000581,1709320261317,-521.63,0.00022684,2]
[316000582,1709320261326,-802.0,0.00022684,2]
[316000583,1709320261335,-500.0,0.00022684,2]
[316000584,1709320261345,-223.41725319,0.00022684,2]
[316000585,1709320261355,-2997.13,0.00022684,2]
[316000586,1709320261365,-910.04,0.00022684,2]
[316000587,1709320261379,-539.34,0.00022684,2]
[316000588,1709320261388,-500.0,0.00022684,2]
[316000589,1709320261398,-500.0,0.00022684,2]
[316000590,1709320261408,-3691.99,0.00022684,2]
[316000591,1709320261418,-525.0,0.00022684,2]
[316000592,1709320261427,-500.0,0.00022684,2]
[316000593,1709320261437,-500.0,0.00022684,2]
[316000594,1709320261447,-500.0,0.00022684,2]
[316000595,1709320261457,-500.0,0.00022684,2]
[316000596,1709320261466,-922.38,0.00022684,2]
[316000597,1709320261476,-961.88,0.00022684,2]
[316000598,1709320261485,-512.8,0.00022684,2]
[316000599,1709320261495,-575.84,0.00022684,2]
[316000600,1709320261504,-500.0,0.00022684,2]
[316000601,1709320261514,-500.0,0.00022684,2]
[316000602,1709320261527,-621.15,0.00022684,2]
[316000603,1709320261536,-1501.8,0.00022684,2]
[316000604,1709320261546,-734.63,0.00022684,2]
[316000605,1709320261555,-500.0,0.00022684,2]
[316000606,1709320261566,-578.43,0.00022684,2]
[316000607,1709320261576,-565.62,0.00022684,2]
[316000608,1709320261586,-500.0,0.00022684,2]
[316000609,1709320261595,-500.0,0.00022684,2]
[316000610,1709320261605,-781.88,0.00022684,2]
[316000611,1709320261615,-500.0,0.00022684,2]
[316000612,1709320261627,-500.0,0.00022684,2]
[316000613,1709320261637,-663.68,0.00022684,2]
[316000614,1709320261646,-500.0,0.00022684,2]
[316000615,1709320261656,-500.0,0.00022684,2]
[316000616,1709320261666,-500.0,0.00022684,2]
[316000617,1709320261675,-500.0,0.00022684,2]
[316000618,1709320261685,-500.0,0.00022684,2]
[316000619,1709320261695,-3725.24,0.00022684,2]
[316000620,1709320261704,-500.0,0.00022684,2]
[316000621,1709320261714,-500.0,0.00022684,2]
[316000622,1709320261723,-500.0,0.00022684,2]
[316000623,1709320261732,-2364.96,0.00022684,2]
[316000624,1709320261742,-500.0,0.00022684,2]
[316000625,1709320261751,-1864.01,0.00022684,2]
[316000626,1709320261760,-500.0,0.00022684,2]
[316000627,1709320261769,-500.0,0.00022684,2]
[316000628,1709320261783,-500.0,0.00022684,2]
[316000629,1709320261792,-837.81,0.00022684,2]
[316000630,1709320261802,-500.0,0.00022684,2]
[316000631,1709320261813,-500.0,0.00022684,2]
[316000632,1709320261822,-2565.92,0.00022684,2]
[316000633,1709320261831,-500.0,0.00022684,2]
[316000634,1709320261841,-500.0,0.00022684,2]
[316000635,1709320261851,-1484.75,0.00022684,2]
[316000636,1709320261860,-500.0,0.00022684,2]
[316000637,1709320261869,-500.0,0.00022684,2]
[316000638,1709320261879,-1661.66,0.00022684,2]
[316000639,1709320261889,-500.0,0.00022684,2]
[316000640,1709320261898,-500.0,0.00022684,2]
[316000641,1709320261908,-989.57,0.00022684,2]
[316000642,1709320261918,-500.0,0.00022684,2]
[316000643,1709320261927,-500.0,0.00022684,2]
[316000644,1709320261937,-842.62,0.00022684,2]
[316000645,1709320261947,-500.0,0.00022684,2]
[316000646,1709320261956,-500.0,0.00022684,2]
[316000647,1709320261966,-500.0,0.00022684,2]
[316000648,1709320261976,-500.0,0.00022684,2]
[316000649,1709320261985,-500.0,0.00022684,2]
[316000650,1709320261994,-4557.4,0.00022684,2]
[316000651,1709320262003,-500.0,0.00022684,2]
[316000652,1709320262014,-500.0,0.00022691,2]
[316000653,1709320262023,-848.11,0.00022698,2]
[316000654,1709320262032,-168.4,0.0002274,2]
[316000655,1709320262041,-164.02,0.0002274,2]
[316000656,1709320262050,-22632.99068215,0.0002277,2]
[316000657,1709320262060,-150.0,0.00022785,2]
[316000658,1709320262069,-400.0,0.00022792,2]
[316000659,1709320262078,-500.0,0.00022792,2]
[316000660,1709320262087,-500.0,0.00022792,2]
[316000661,1709320262097,-500.0,0.00022792,2]
[316000662,1709320262106,-350.0,0.00022792,2]
[316000663,1709320262115,-500.0,0.00022792,2]
[316000664,1709320262128,-450.0,0.00022792,2]
[316000665,1709320262138,-500.0,0.00022792,2]
[316000666,1709320262147,-500.0,0.00022792,2]
[316000667,1709320262156,-500.0,0.00022792,2]
[316000668,1709320262166,-500.0,0.00022792,2]
[316000669,1709320262175,-500.0,0.00022792,2]
[316000670,1709320262185,-500.0,0.00022792,2]
[316000671,1709320262194,-500.0,0.00022792,2]
[316000672,1709320262204,-500.0,0.00022792,2]
[316000673,1709320262213,-500.0,0.00022792,2]
[316000674,1709320262223,-500.0,0.00022792,2]
[316000675,1709320262232,-500.0,0.00022792,2]
[316000676,1709320262242,-151.0,0.00022792,2]
[316000677,1709320262251,-151.0,0.00022792,2]
[316000678,1709320262260,-200.0,0.00022792,2]
[316000679,1709320262269,-800.0,0.00022792,2]
[316000680,1709320262279,-200.0,0.00022792,2]
[316000681,1709320262288,-570.42,0.00022794,2]
[316000682,1709320262298,-500.0,0.00022794,2]
[316000683,1709320262308,-516.94087215,0.00022794,2]
[316000684,1709320262317,-500.0,0.00022794,2]
[316000685,1709320262327,-500.0,0.00022794,2]
[316000686,1709320262336,-500.0,0.00022794,2]
[316000687,1709320262346,-500.0,0.00022794,2]
[316000688,1709320262355,-500.0,0.00022794,2]
[316000689,1709320262365,-500.0,0.00022794,2]
[316000690,1709320262376,-500.0,0.00022794,2]
[316000691,1709320262385,-500.0,0.00022794,2]
[316000692,1709320262395,-500.0,0.00022794,2]
[316000693,1709320262404,-441.88,0.00022794,2]
[316000694,1709320262413,-201.05,0.00022794,2]
[316000695,1709320262423,-1535.68,0.00022794,2]
[316000696,1709320262432,-500.0,0.00022794,2]
[316000697,1709320262442,-520.16,0.00022794,2]
[316000698,1709320262451,-500.0,0.00022794,2]
[316000699,1709320262460,-500.0,0.00022794,2]
[316000700,1709320262469,-151.0,0.00022794,7]
[316000701,1709320262479,-151.0,0.00022794,7]
[316000702,1709320262488,-178.96,0.00022794,2]
[316000703,1709320262497,-500.0,0.00022794,2]
[316000704,1709320262507,-151.0,0.00022794,7]
[316000705,1709320262516,-500.0,0.00022794,2]
[316000706,1709320262525,-150.0,0.00022794,2]
[316000707,1709320262538,-2419.06,0.00022794,2]
[316000708,1709320262547,-500.0,0.00022794,2]
[316000709,1709320262556,-561.00859824,0.00022794,2]
[316000710,1709320262565,-500.0,0.00022794,2]
[316000711,1709320262576,-500.0,0.00022794,2]
[316000712,1709320262585,-500.0,0.00022794,2]
[316000713,1709320262595,-500.0,0.00022794,2]
[316000714,1709320262605,-199.94,0.00022794,2]
[316000715,1709320262614,-500.0,0.00022794,2]
[316000716,1709320262626,-624.18,0.00022794,2]
[316000717,1709320262636,-500.0,0.00022794,2]
[316000718,1709320262646,-500.0,0.00022794,2]
[316000719,1709320262655,-500.0,0.00022794,2]
[316000720,1709320262665,-500.0,0.00022794,2]
[316000721,1709320262674,-500.0,0.00022794,2]
[316000722,1709320262684,-500.0,0.00022794,2]
[316000723,1709320262694,-500.0,0.00022794,2]
[316000724,1709320262703,-500.0,0.00022794,2]
[316000725,1709320262713,-500.0,0.00022794,2]
[316000726,1709320262723,-500.0,0.00022794,2]
[316000727,1709320262733,-500.0,0.00022794,2]
[316000728,1709320262743,-500.0,0.00022794,2]
[316000729,1709320262752,-500.0,0.00022794,2]
[316000730,1709320262762,-500.0,0.00022794,2]
[316000731,1709320262772,-500.0,0.00022794,2]
[316000732,1709320262782,-555.0,0.00022794,2]
[316000733,1709320262792,-1263.89,0.00022794,2]
[316000734,1709320262801,-500.0,0.00022794,2]
[316000735,1709320262811,-500.0,0.00022794,2]
[316000736,1709320262821,-500.0,0.00022794,2]
[316000737,1709320262831,-230.09,0.00022794,2]
[316000738,1709320262840,-500.0,0.00022794,2]
[316000739,1709320262850,-500.0,0.00022794,2]
[316000740,1709320262860,-500.0,0.00022794,2]
[316000741,1709320262870,-500.0,0.00022794,2]
[316000742,1709320262880,-964.22,0.00022794,2]
[316000743,1709320262889,-500.0,0.00022794,2]
[316000744,1709320262899,-355.48,0.00022794,2]
[316000745,1709320262909,-500.0,0.00022794,2]
[316000746,1709320262918,-569.76,0.00022794,2]
[316000747,1709320262928,-500.0,0.00022794,2]
[316000748,1709320262937,-500.0,0.00022794,2]
[316000749,1709320262947,-500.0,0.00022794,2]
[316000750,1709320262957,-2152.64,0.00022794,2]
[316000751,1709320262967,-500.0,0.00022794,2]
[316000752,1709320262976,-500.0,0.00022794,2]
[316000753,1709320262986,-500.0,0.00022794,2]
[316000754,1709320262995,-500.0,0.00022794,2]
[316000755,1709320263005,-500.0,0.00022794,2]
[316000756,1709320263014,-869.51,0.00022794,2]
[316000757,1709320263025,-500.0,0.00022794,2]
[316000758,1709320263034,-878.87,0.00022794,2]
[316000759,1709320263043,-500.0,0.00022794,2]
[316000760,1709320263053,-1152.74,0.00022794,2]
[316000761,1709320263062,-349.67,0.00022794,2]
[316000762,1709320263071,-500.0,0.00022794,2]
[316000763,1709320263080,-500.0,0.00022794,2]
[316000764,1709320263089,-500.0,0.00022794,2]
[316000765,1709320263099,-500.0,0.00022794,2]
[316000766,1709320263108,-3725.49,0.00022794,2]
[316000767,1709320263118,-500.0,0.00022794,2]
[316000768,1709320263127,-500.0,0.00022794,2]
[316000769,1709320263137,-500.0,0.00022794,2]
[316000770,1709320263146,-500.0,0.00022794,2]
[316000771,1709320263157,-837.45,0.00022794,2]
[316000772,1709320263166,-500.0,0.00022794,2]
[316000773,1709320263175,-500.0,0.00022794,2]
[316000774,1709320263185,-500.0,0.00022794,2]
[316000775,1709320263194,-500.0,0.00022794,2]
[316000776,1709320263203,-500.0,0.00022794,2]
[316000777,1709320263358,-500.0,0.00022794,2]
[316000778,1709320263369,-500.0,0.00022794,2]
[316000779,1709320263379,-500.0,0.00022794,2]
[316000780,1709320263389,-500.0,0.00022794,2]
[316000781,1709320263399,-500.0,0.00022794,2]
[316000782,1709320263409,-500.0,0.00022794,2]
[316000783,1709320263418,-500.0,0.00022794,2]
[316000784,1709320263428,-1387.81,0.00022794,2]
[316000785,1709320263437,-500.0,0.00022794,2]
[316000786,1709320263447,-1558.13,0.00022794,2]
[316000787,1709320263456,-500.0,0.00022794,2]
[316000788,1709320263466,-500.0,0.00022794,2]
[316000789,1709320263475,-1310.38,0.00022794,2]
[316000790,1709320263485,-802.0,0.00022794,2]
[316000791,1709320263494,-500.0,0.00022794,2]
[316000792,1709320263504,-2997.13,0.00022794,2]
[316000793,1709320263513,-910.04,0.00022794,2]
[316000794,1709320263524,-539.34,0.00022794,2]
[316000795,1709320263539,-500.0,0.00022794,2]
[316000796,1709320263550,-500.0,0.00022794,2]
[316000797,1709320263560,-3691.99,0.00022794,2]
[316000798,1709320263570,-525.0,0.00022794,2]
[316000799,1709320263581,-500.0,0.00022794,2]
[316000800,1709320263590,-500.0,0.00022794,2]
[316000801,1709320263601,-500.0,0.00022794,2]
[316000802,1709320263612,-500.0,0.00022794,2]
[316000803,1709320263623,-922.38,0.00022794,2]
[316000804,1709320263633,-961.88,0.00022794,2]
[316000805,1709320263643,-512.8,0.00022794,2]
[316000806,1709320263652,-575.84,0.00022794,2]
[316000807,1709320263662,-500.0,0.00022794,2]
[316000808,1709320263671,-500.0,0.00022794,2]
[316000809,1709320263681,-621.15,0.00022794,2]
[316000810,1709320263690,-1501.8,0.00022794,2]
[316000811,1709320263701,-734.63,0.00022794,2]
[316000812,1709320263711,-500.0,0.00022794,2]
[316000813,1709320263720,-578.43,0.00022794,2]
[316000814,1709320263731,-565.62,0.00022794,2]
[316000815,1709320263741,-500.0,0.00022794,2]
[316000816,1709320263751,-500.0,0.00022794,2]
[316000817,1709320263761,-781.88,0.00022794,2]
[316000818,1709320263771,-500.0,0.00022794,2]
[316000819,1709320263781,-500.0,0.00022794,2]
[316000820,1709320263790,-663.68,0.00022794,2]
[316000821,1709320263800,-500.0,0.00022794,2]
[316000822,1709320263810,-500.0,0.00022794,2]
[316000823,1709320263820,-500.0,0.00022794,2]
[316000824,1709320263829,-500.0,0.00022794,2]
[316000825,1709320263839,-500.0,0.00022794,2]
[316000826,1709320263849,-3725.24,0.00022794,2]
[316000827,1709320263859,-500.0,0.00022794,2]
[316000828,1709320263870,-500.0,0.00022794,2]
[316000829,1709320263880,-500.0,0.00022794,2]
[316000830,1709320263890,-2364.96,0.00022794,2]
[316000831,1709320263900,-500.0,0.00022794,2]
[316000832,1709320263910,-1864.01,0.00022794,2]
[316000833,1709320263920,-500.0,0.00022794,2]
[316000834,1709320263930,-500.0,0.00022794,2]
[316000835,1709320263940,-837.81,0.00022794,2]
[316000836,1709320263950,-500.0,0.00022794,2]
[316000837,1709320263959,-428.43842156,0.00022794,2]
[316000838,1709320263969,-2565.92,0.00022794,2]
[316000839,1709320263979,-500.0,0.00022794,2]
[316000840,1709320263989,-500.0,0.00022794,2]
[316000841,1709320263998,-1484.75,0.00022794,2]
[316000842,1709320264009,-500.0,0.00022794,2]
[316000843,1709320264018,-500.0,0.00022794,2]
[316000844,1709320264028,-1661.66,0.00022794,2]
[316000845,1709320264038,-500.0,0.00022794,2]
[316000846,1709320264047,-500.0,0.00022794,2]
[316000847,1709320264056,-989.57,0.00022794,2]
[316000848,1709320264066,-298.05307871,0.00022794,2]
[316000849,1709320264075,-500.0,0.00022794,2]
[316000850,1709320264086,-842.62,0.00022794,2]
[316000851,1709320264095,-479.826786,0.00022794,2]
[316000852,1709320264104,-500.0,0.00022794,2]
[316000853,1709320264114,-500.0,0.00022794,2]
[316000854,1709320264123,-500.0,0.00022794,2]
[316000855,1709320264133,-500.0,0.00022794,2]
[316000856,1709320264142,-4557.4,0.00022794,2]
[316000857,1709320264152,-500.0,0.00022794,2]
[316000858,1709320264162,-1860.94103561,0.00022799,2]
[316000859,1709320264171,-1860.94103553,0.00022799,2]
[316000860,1709320264181,-1860.94103553,0.00022799,2]
[316000861,1709320264191,-1860.94103553,0.00022799,2]
[316000862,1709320264200,-1860.94103553,0.00022799,2]
[316000863,1709320264210,-1860.94103553,0.00022799,2]
[316000864,1709320264219,-1860.94103553,0.00022799,2]
[316000865,1709320264229,-1860.94103553,0.00022799,2]
[316000866,1709320264238,-1860.94103553,0.00022799,2]
[316000867,1709320264248,-500.0,0.00022799,2]
[316000868,1709320264257,-151.0,0.00022799,7]
[316000869,1709320264266,-132634.13293753,0.000228,2]
[316000870,1709320264276,-7373.6973022,0.000228,2]
[316000871,1709320264285,-151.0,0.000228,7]
[316000872,1709320264295,-151.0,0.000228,7]
[316000873,1709320264305,-151.0,0.000228,7]
[316000874,1709320264315,-151.0,0.000228,7]
[316000875,1709320264324,-151.0,0.000228,7]
[316000876,1709320264334,-151.0,0.000228,7]
[316000877,1709320264344,-151.0,0.000228,2]
[316000878,1709320264353,-151.0,0.000228,7]
[316000879,1709320264362,-151.0,0.000228,7]
[316000880,1709320264372,-156.637293,0.000228,7]
[316000881,1709320264381,-156.637293,0.000228,7]
[316000882,1709320264391,-151.0,0.000228,7]
[316000883,1709320264400,-151.0,0.000228,7]
[316000884,1709320264410,-151.0,0.000228,7]
[316000885,1709320264419,-151.0,0.000228,7]
[316000886,1709320264429,-351.249226,0.000228,7]
[316000887,1709320264438,-351.249226,0.000228,7]
[316000888,1709320264447,-151.0,0.000228,2]
[316000889,1709320264457,-151.0,0.000228,7]
[316000890,1709320264467,-158.797334,0.000228,7]
[316000891,1709320264477,-151.0,0.000228,7]
[316000892,1709320264487,-500.0,0.00022801,2]
[316000893,1709320264496,-155.33,0.00022805,2]
[316000894,1709320264506,-217.447954,0.00022809,7]
[316000895,1709320264515,-217.447954,0.00022809,7]
[316000896,1709320264525,-7373.6973021,0.00022809,2]
[316000897,1709320264538,-213.955794,0.00022818,7]
[316000898,1709320264547,-7373.6973021,0.00022818,2]
[316000899,1709320264556,-7373.6973021,0.00022827,2]
[316000900,1709320264566,-7373.6973021,0.00022836,2]
[316000901,1709320264576,-184.65105632,0.0002284,2]
[316000902,1709320264586,-7373.6973021,0.00022845,2]
[316000903,1709320264595,-150.0,0.00022853,2]
[316000904,1709320264604,-7373.6973021,0.00022855,2]
[316000905,1709320264615,-150.0,0.00022855,2]
[316000906,1709320264626,-150.0,0.00022859,2]
[316000907,1709320264636,-500.0,0.00022861,2]
[316000908,1709320264646,-500.0,0.00022861,2]
[316000909,1709320264655,-500.0,0.00022861,2]
[316000910,1709320264665,-500.0,0.00022861,2]
[316000911,1709320264674,-500.0,0.00022861,2]
[316000912,1709320264684,-299.722,0.00022861,2]
[316000913,1709320264693,-1000.0,0.00022861,2]
[316000914,1709320264704,-1071.6474,0.00022861,2]
[316000915,1709320264713,-500.0,0.00022861,2]
[316000916,1709320264722,-500.0,0.00022861,2]
[316000917,1709320264732,-7373.6973021,0.00022864,2]
[316000918,1709320264742,-150.0,0.00022867,2]
[316000919,1709320264752,-7373.6973021,0.00022873,2]
[316000920,1709320264761,-7373.6973021,0.00022882,2]
[316000921,1709320264771,-7373.6973021,0.00022891,2]
[316000922,1709320264780,-241.9728962,0.00022897,2]
[316000923,1709320264790,-180.94103637,0.00022897,2]
[316000924,1709320264800,-173.31956146,0.00022897,2]
[316000925,1709320264809,-4175.4640978,0.00022897,2]
[316000926,1709320264819,-229.28010987,0.00022898,2]
[316000927,1709320264829,-2563.0,0.00022898,20]
[316000928,1709320264838,-151.0,0.00022898,2]
[316000929,1709320264847,-151.0,0.00022898,2]
[316000930,1709320264857,-99312.78157778,0.00022898,2]
[316000931,1709320264867,-1000.0,0.000229,2]
[316000932,1709320264878,-866.152,0.000229,2]
[316000933,1709320264888,-7373.6973021,0.000229,2]
[316000934,1709320264897,-152.35886706,0.000229,2]
[316000935,1709320264907,-58000.0,0.000229,2]
[316000936,1709320264919,-151.0,0.000229,7]
[316000937,1709320264928,-180.904945,0.000229,7]
[316000938,1709320264938,-151.0,0.000229,7]
[316000939,1709320264948,-5800.0,0.000229,2]
[316000940,1709320264959,-348.0,0.000229,2]
[316000941,1709320264968,-2600.75551352,0.000229,2]
[316000942,1709320264978,-2600.75551337,0.000229,2]
[316000943,1709320264988,-2600.75551337,0.000229,2]
[316000944,1709320264997,-2600.75551337,0.000229,2]
[316000945,1709320265008,-2600.75551337,0.000229,2]
[316000946,1709320265017,-2600.75551337,0.000229,2]
[316000947,1709320265027,-2600.75551337,0.000229,2]
[316000948,1709320265037,-2600.75551337,0.000229,2]
[316000949,1709320265046,-2600.75551337,0.000229,2]
[316000950,1709320265055,-2600.75551337,0.000229,2]
[316000951,1709320265065,-2600.75551337,0.000229,2]
[316000952,1709320265074,-2600.75551337,0.000229,2]
[316000953,1709320265083,-2600.75551337,0.000229,2]
[316000954,1709320265093,-2600.75551337,0.000229,2]
[316000955,1709320265102,-2600.75551337,0.000229,2]
[316000956,1709320265112,-2600.75551337,0.000229,2]
[316000957,1709320265122,-2600.75551337,0.000229,2]
[316000958,1709320265132,-2600.75551337,0.000229,2]
[316000959,1709320265142,-2600.75551337,0.000229,2]
[316000960,1709320265152,-2600.75551337,0.000229,2]
[316000961,1709320265162,-204.21,0.000229,2]
[316000962,1709320265171,-1500.0,0.000229,2]
[316000963,1709320265184,-892.40355576,0.000229,2]
[316000964,1709320265194,-1860.94103553,0.000229,2]
[316000965,1709320265204,-176.33654411,0.000229,2]
[316000966,1709320265214,-153.82081052,0.000229,2]
[316000967,1709320265224,-10510.45781013,0.000229,2]
[316000968,1709320265234,-486.54499129,0.000229,2]
[316000969,1709320265244,-1000.0,0.000229,2]
[316000970,1709320265254,-151.0,0.000229,7]
[316000971,1709320265263,-1124.70419442,0.00022902,7]
[316000972,1709320265274,-1041.39507047,0.00022902,4]
[316000973,1709320265284,-500.0,0.00022903,2]
[316000974,1709320265293,-570.42,0.00022904,2]
[316000975,1709320265303,-500.0,0.00022904,2]
[316000976,1709320265313,-500.0,0.00022904,2]
[316000977,1709320265324,-500.0,0.00022904,2]
[316000978,1709320265334,-500.0,0.00022904,2]
[316000979,1709320265344,-500.0,0.00022904,2]
[316000980,1709320265354,-500.0,0.00022904,2]
[316000981,1709320265363,-500.0,0.00022904,2]
[316000982,1709320265375,-500.0,0.00022904,2]
[316000983,1709320265385,-500.0,0.00022904,2]
[316000984,1709320265395,-340.36891955,0.00022904,2]
[316000985,1709320265405,-1535.68,0.00022904,2]
[316000986,1709320265415,-625.85,0.00022904,2]
[316000987,1709320265425,-321.17,0.00022904,2]
[316000988,1709320265435,-500.0,0.00022904,2]
[316000989,1709320265446,-500.0,0.00022904,2]
[316000990,1709320265455,-500.0,0.00022904,2]
[316000991,1709320265465,-150.0,0.00022904,2]
[316000992,1709320265475,-2419.06,0.00022904,2]
[316000993,1709320265485,-500.0,0.00022904,2]
[316000994,1709320265494,-500.0,0.00022904,2]
[316000995,1709320265504,-500.0,0.00022904,2]
[316000996,1709320265514,-500.0,0.00022904,2]
[316000997,1709320265525,-500.0,0.00022904,2]
[316000998,1709320265538,-500.0,0.00022904,2]
[316000999,1709320265548,-500.0,0.00022904,2]
[316001000,1709320265557,-500.0,0.00022904,2]
[316001001,1709320265568,-281.88,0.00022904,2]
[316001002,1709320265578,-500.0,0.00022904,2]
[316001003,1709320265588,-500.0,0.00022904,2]
[316001004,1709320265597,-500.0,0.00022904,2]
[316001005,1709320265608,-500.0,0.00022904,2]
[316001006,1709320265617,-500.0,0.00022904,2]
[316001007,1709320265628,-500.0,0.00022904,2]
[316001008,1709320265638,-500.0,0.00022904,2]
[316001009,1709320265650,-500.0,0.00022904,2]
[316001010,1709320265659,-500.0,0.00022904,2]
[316001011,1709320265671,-500.0,0.00022904,2]
[316001012,1709320265681,-467.79,0.00022904,2]
[316001013,1709320265691,-555.0,0.00022904,2]
[316001014,1709320265701,-1263.89,0.00022904,2]
[316001015,1709320265711,-500.0,0.00022904,2]
[316001016,1709320265721,-500.0,0.00022904,2]
[316001017,1709320265730,-500.0,0.00022904,2]
[316001018,1709320265740,-500.0,0.00022904,2]
[316001019,1709320265749,-500.0,0.00022904,2]
[316001020,1709320265759,-500.0,0.00022904,2]
[316001021,1709320265769,-500.0,0.00022904,2]
[316001022,1709320265822,-964.22,0.00022904,2]
[316001023,1709320265833,-500.0,0.00022904,2]
[316001024,1709320265843,-569.76,0.00022904,2]
[316001025,1709320265853,-614.14,0.00022904,2]
[316001026,1709320265863,-500.0,0.00022904,2]
[316001027,1709320265873,-500.0,0.00022904,2]
[316001028,1709320265883,-2152.64,0.00022904,2]
[316001029,1709320265893,-500.0,0.00022904,2]
[316001030,1709320265903,-500.0,0.00022904,2]
[316001031,1709320265913,-500.0,0.00022904,2]
[316001032,1709320265924,-500.0,0.00022904,2]
[316001033,1709320265934,-869.51,0.00022904,2]
[316001034,1709320265944,-500.0,0.00022904,2]
[316001035,1709320265954,-500.0,0.00022904,2]
[316001036,1709320265965,-878.87,0.00022904,2]
[316001037,1709320265975,-500.0,0.00022904,2]
[316001038,1709320265985,-1152.74,0.00022904,2]
[316001039,1709320265995,-500.0,0.00022904,2]
[316001040,1709320266004,-500.0,0.00022904,2]
[316001041,1709320266014,-500.0,0.00022904,2]
[316001042,1709320266024,-500.0,0.00022904,2]
[316001043,1709320266033,-3725.49,0.00022904,2]
[316001044,1709320266043,-500.0,0.00022904,2]
[316001045,1709320266053,-500.0,0.00022904,2]
[316001046,1709320266063,-500.0,0.00022904,2]
[316001047,1709320266072,-500.0,0.00022904,2]
[316001048,1709320266083,-837.45,0.00022904,2]
[316001049,1709320266092,-500.0,0.00022904,2]
[316001050,1709320266102,-500.0,0.00022904,2]
[316001051,1709320266112,-500.0,0.00022904,2]
[316001052,1709320266124,-500.0,0.00022904,2]
[316001053,1709320266134,-500.0,0.00022904,2]
[316001054,1709320266144,-500.0,0.00022904,2]
[316001055,1709320266156,-500.0,0.00022904,2]
[316001056,1709320266167,-500.0,0.00022904,2]
[316001057,1709320266177,-500.0,0.00022904,2]
[316001058,1709320266188,-500.0,0.00022904,2]
[316001059,1709320266198,-500.0,0.00022904,2]
[316001060,1709320266208,-500.0,0.00022904,2]
[316001061,1709320266219,-1387.81,0.00022904,2]
[316001062,1709320266229,-500.0,0.00022904,2]
[316001063,1709320266240,-1558.13,0.00022904,2]
[316001064,1709320266251,-151.0,0.00022904,7]
[316001065,1709320266262,-500.0,0.00022904,2]
[316001066,1709320266273,-151.0,0.00022904,7]